Cogmind - Beta 17.1 @@@ ROGUE MODE // 2026.08.25 @ 15:50:15 Player: MEOWRTGM Result: Destroyed by D-53 Grenadier with Mini Grenade Launcher Performance ------------- Evolutions (0) 0 Regions Visited (2) 400 Robots Destroyed (10) 50 Value Destroyed (203) 203 Prototype IDs (0) 0 Alien Tech Used (0) 0 Bonus (0) 0 TOTAL SCORE: 653 Bonus ------- None Cogmind --------- Core Integrity 0/250 Matter 78/300 Energy 99/100 System Corruption 4% Temperature Cool (0) Movement Core (50) Location -10/Mines Parts ------- > --- POWER (1) -------- (None) > --- PROPULSION (2) --- (None) > --- UTILITY (2) ------ Core Shielding > --- WEAPON (2) ------- (None) > --- INVENTORY (5) ---- Light Treads Light Treads Targeting Computer Targeting Computer Assault Rifle Peak State ------------ > --- POWER ------------ Ion Engine > --- PROPULSION ------- Aluminum Leg Aluminum Leg > --- UTILITY ---------- Small Storage Unit Improved Terrain Scanner > --- WEAPON ----------- Assault Rifle Shotgun > --- INVENTORY -------- Light Ion Engine Light Treads Light Treads Seismic Detector Medium Armor Plating EM Pulse Gun Rocket Launcher Rocket Launcher [Rating: 11] Favorites ----------- Power Ion Engine Engine Ion Engine Propulsion Light Treads Treads Light Treads Leg Aluminum Leg Utility Improved Terrain Scanner Device Improved Terrain Scanner Storage Medium Storage Unit Protection Core Shielding Weapon Assault Rifle Energy Gun Medium Laser Ballistic Gun Assault Rifle Launcher Rocket Launcher Build | -11 -10 -10 ------- Run | Yrd Mat Min Slots Evolved . | . . . Power . | . . . Propulsion . | . . . Utility . | . . . Weapon . | . . . Parts Attached 18 | 7 5 6 Power 2 | 1 . 1 Engine 2 | 1 . 1 Core . | . . . Reactor . | . . . Propulsion 5 | 2 2 1 Treads 3 | . 2 1 Leg 2 | 2 . . Wheel . | . . . Hover . | . . . Flight . | . . . Utility 6 | 2 2 2 Device 2 | 1 . 1 Storage 2 | 1 1 . Processor . | . . . Hackware . | . . . Protection 2 | . 1 1 Artifact . | . . . Weapon 5 | 2 1 2 Energy Gun 1 | 1 . . Energy Cannon . | . . . Ballistic Gun 2 | 1 1 . Ballistic Cannon . | . . . Launcher 2 | . . 2 Special Weapon . | . . . Impact Weapon . | . . . Slashing Weapon . | . . . Piercing Weapon . | . . . Special Melee Weapon . | . . . Unidentified Prototypes . | . . . Parts Lost 6 | . 1 5 Power 1 | . 1 . Propulsion 2 | . . 2 Utility 2 | . . 2 Weapon 1 | . . 1 Highest Loss Streak 4 | . 1 4 To Critical Strikes . | . . . Average Backups 6 | 3 8 5 Power . | 1 1 . Propulsion . | 1 . 1 Utility 3 | . 4 3 Weapon 1 | . 1 1 Tool/Special . | . . . Unused Backups 6 | . 2 4 Power 1 | . 1 . Propulsion 1 | . . 1 Utility 3 | . . 3 Weapon 1 | . 1 . Tool/Special . | . . . Average Slot Usage (%) 79 | . 98 40 Engine 9 | . 12 3 Treads 17 | . 23 6 Leg 3 | . 4 . Device 11 | . 13 9 Storage 10 | . 14 3 Protection 4 | . . 13 Ballistic Gun 19 | . 26 5 Peak Build Rating 11 | 9 11 11 Average Rating 7 | 5 10 3 On Entrance 6 | . 9 9 Avg Prop Armor Cover (%) . | . . . Naked Turns 2 | . . 2 Heaviest Build 22 | 15 22 2 Greatest Support 40 | 20 40 20 Greatest Overweight (x) 1 | 1 . . Average Overweight (x) . | . . . Largest Inventory Capacity 10 | 8 10 10 Average Capacity 8 | 7 9 5 Most Carried 9 | 6 9 8 Average Carried 6 | 3 8 5 Final Capacity 10 | 8 10 5 Final Carried 9 | 6 9 5 Class Distribution -------------------- 100% | Mutant Dominant Class ---------------- Mutant | -10/Materials Mutant | -10/Mines Resources | -11 -10 -10 ----------- Run | Yrd Mat Min Matter Collected 346 | 230 116 . Remotely . | . . . Salvage Created 452 | 103 281 68 Parts 19 | 10 9 . Haulers Intercepted . | . . . Recyclers Shooed 1 | 1 . . Parts Field Recycled . | . . . Retrieved Matter . | . . . Parts Self-Destructed . | . . . Prevented . | . . . Parts Restored . | . . . Kills | -11 -10 -10 ------- Run | Yrd Mat Min Combat Hostiles Destroyed 18 | . 5 13 Guns 6 | . 5 1 AOE 12 | . . 12 Classes Destroyed 4 | 2 1 1 Tunneler 3 | 3 . . Recycler 2 | 1 1 . Grunt 5 | . 5 . Assembled 13 | . . 13 Best Kill Streak 17 | 2 4 17 Combat Bots Only 16 | . 3 16 Max Kills in Single Turn 4 | 1 2 4 Gunslinging 1 | . 1 . Exploded 4 | . . 4 Melee . | . . . Uniques/NPCs Destroyed . | . . . Combat | -11 -10 -10 -------- Run | Yrd Mat Min Hostile Shots Fired 96 | . 48 48 Missed 28 | . 12 16 Hits 68 | . 36 32 Melee 8 | . . 8 Projectile 60 | . 36 24 AOE 1 | . . 1 Damage Taken 1076 | . 400 676 Core 259 | . 54 205 Absorbed by Shields . | . . . Redirected to Shielding 23 | . . 23 Core Remaining (%) 100 | 100 . . Volleys Fired 37 | 10 19 8 Largest 2 | 2 2 2 Hottest 70 | 70 43 43 Shots Fired 66 | 20 38 8 Gun 62 | 20 38 4 Cannon . | . . . Launcher 4 | . . 4 Special . | . . . Kinetic 52 | 10 38 4 Thermal 10 | 10 . . Explosive 4 | . . 4 Electromagnetic . | . . . Robot Hit Streak 12 | 6 12 6 Robot Miss Streak 2 | 1 2 2 Penetration Max . | . . . Secondary Targets 3 | . 2 1 Max Gunslinging Chain 1 | . 1 1 Shots Hit Robots 46 | 13 28 5 Core Hits 41 | 5 15 21 Critical Kills . | . . . Critical Parts Destroyed . | . . . Critical Strikes 1 | 1 . . Burn 1 | 1 . . Melee Attacks . | . . . Impact . | . . . Slashing . | . . . Piercing . | . . . Sneak Attacks . | . . . Combat Hostiles . | . . . Follow-up Attacks . | . . . Damage Inflicted 1344 | 166 416 762 Guns 638 | 166 406 66 Cannons . | . . . Explosions 696 | . . 696 Melee . | . . . Ramming 10 | . 10 . Kinetic 575 | 103 406 66 Thermal 63 | 63 . . Explosive 696 | . . 696 Electromagnetic . | . . . Impact . | . . . Slashing . | . . . Piercing . | . . . Highest Corruption 4 | . . 4 Average Corruption 4 | . . 4 Corruption Purged . | . . . Corruption Blocked . | . . . Effects 4 | . . 4 Message Errors 2 | . . 2 Matter Fused 1 | . . 1 Weapon Failures 1 | . . 1 Overload Shots . | . . . Overflow Damage 23 | . . 23 Projectiles . | . . . Explosions 23 | . . 23 Melee . | . . . Knockbacks . | . . . Impact . | . . . Kinetic . | . . . Secondary . | . . . Self-Inflicted Damage 103 | . . 103 Shots 3 | . . 3 Rammed 4 | . 4 . Targets Rammed 4 | . 4 . Kicked . | . . . Crushed . | . . . Highest Temperature 45 | 45 12 19 Average Temperature 18 | 20 9 14 Received Heat Transfer 256 | . 216 40 Siege Activations . | . . . Martial Activations . | . . . Shielding Activations . | . . . Robots Disrupted . | . . . Combat Hostiles . | . . . Robots Corrupted . | . . . Combat Hostiles . | . . . Parts Fried . | . . . Impact Corruptions . | . . . Robots Melted . | . . . Combat Hostiles . | . . . Parts Melted . | . . . Heat Transferred 259 | 259 . . Parts Sabotaged . | . . . Parts Stolen . | . . . Parts Stripped . | . . . Power Chain Reactions . | . . . Alert | -11 -10 -10 ------- Run | Yrd Mat Min Maximum Alert Level . | . . . Low Security (%) 100 | 100 100 100 Level 1 . | . . . Level 2 . | . . . Level 3 . | . . . Level 4 . | . . . Level 5 . | . . . High Security . | . . . Max Security . | . . . Peak Influence 70 | 5 70 35 Initial 25 | . . 25 Average 5 | . 8 6 Influence Increases 200 | 20 138 42 Destroy 0b10 Robot/C 100 | . 100 . Destroy 0b10 Robot/NC 25 | 20 5 . Destroy Leader 20 | . 20 . Successful Hack 13 | . 13 . Destroy Structure 27 | . . 27 Lose Combat Pursuer 15 | . . 15 Influence Decreases 200 | 20 73 107 Entered New Map 40 | . . 40 Time Decay 110 | 20 63 27 Lost Part 50 | . 10 40 Squads Dispatched 2 | . 2 . Investigation 1 | . 1 . Extermination . | . . . Reinforcement 1 | . 1 . Assault . | . . . Garrison . | . . . Intercept . | . . . Searches Triggered . | . . . Construction Impeded . | . . . Haulers Reinforced . | . . . Active Scanning Responses . | . . . Cargo Convoy Interrupts . | . . . Stealth | -11 -10 -10 --------- Run | Yrd Mat Min Distress Signals 1 | . 1 . Communications Jammed . | . . . Distress Signals . | . . . Times Spotted 37 | . 9 28 Peak Tracking Total 12 | . 4 12 Tactical Retreats 1 | . . 1 Traps | -11 -10 -10 ------- Run | Yrd Mat Min Traps Triggered 1 | . 1 . Indirectly . | . . . Trap Hack Attempts . | . . . Triggered . | . . . Disarmed . | . . . Reprogrammed . | . . . Reused . | . . . Traps Extracted . | . . . Installed . | . . . Triggered . | . . . Machines | -11 -10 -10 ---------- Run | Yrd Mat Min Machines Disabled . | . . . Max in Single Turn . | . . . Machines Repaired . | . . . Machines Dismantled . | . . . Machines Sabotaged . | . . . Overloaded Fab Kills . | . . . Hacking | -11 -10 -10 --------- Run | Yrd Mat Min Machines Accessed 2 | . 2 . Terminals 2 | . 2 . Fabricators . | . . . Repair Stations . | . . . Recycling Units . | . . . Scanalyzers . | . . . Garrison Access . | . . . Total Hacks 4 | . 4 . Successful 2 | . 2 . Failed 2 | . 2 . Catastrophic 1 | . 1 . Database Lockouts . | . . . Manual 4 | . 4 . Terminals 4 | . 4 . Fabricators . | . . . Repair Stations . | . . . Recycling Units . | . . . Scanalyzers . | . . . Garrison Access . | . . . Terminal Hacks 1 | . 1 . Branch Access Points 1 | . 1 . Fabricator Hacks . | . . . Repair Station Hacks . | . . . Recycling Unit Hacks . | . . . Scanalyzer . | . . . Garrison Access Hacks . | . . . Unauthorized Hacks 1 | . 1 . Terminals 1 | . 1 . Botnet 1 | . 1 . Fabricators . | . . . Repair Stations . | . . . Recycling Units . | . . . Scanalyzers . | . . . Garrison Access . | . . . Data Cores Recovered . | . . . Used . | . . . Hacking Detections 2 | . 2 . Full Trace Events . | . . . Feedback Events . | . . . Feedback Blocked . | . . . Robot Schematics Acquired . | . . . Robots Built . | . . . Authchips . | . . . Time . | . . . Total Robot Build Rating . | . . . Part Schematics Acquired . | . . . Parts Built . | . . . Authchips . | . . . Time . | . . . Total Part Build Rating . | . . . Part Studies Acquired . | . . . Parts Repaired . | . . . Time . | . . . Parts Recycled . | . . . Recycled Matter . | . . . Retrieved Matter . | . . . Retrieved Components . | . . . Parts Scanalyzed . | . . . Part Schematics Acquired . | . . . Parts Damaged . | . . . Bothacking | -11 -10 -10 ------------ Run | Yrd Mat Min Used RIF Installer . | . . . Robots Hacked . | . . . Non-combat . | . . . Combat . | . . . Robot Hacks Applied . | . . . Relay Couplers Released . | . . . Fabnet Peak Effective % . | . . . Robots Rewired . | . . . Allies Hacked . | . . . Hacks Repelled . | . . . Allies | -11 -10 -10 -------- Run | Yrd Mat Min Total Allies . | . . . Largest Group . | . . . Highest-Rated Group . | . . . Highest-Rated Ally . | . . . Total Orders . | . . . Ally Attacks . | . . . Total Damage . | . . . Kills . | . . . Allies Corrupted . | . . . Allies Melted . | . . . Intel | -11 -10 -10 ------- Run | Yrd Mat Min Active Infowar (turns) 441 | 80 268 93 Terrain 348 | 80 268 . Seismic 93 | . . 93 Robot Analysis Total . | . . . Derelict Logs Recovered . | . . . Drone Launches . | . . . Drone Recoveries . | . . . Exploration | -11 -10 -10 ------------- Run | Yrd Mat Min Turns Passed 590 | 173 293 124 Spaces Moved 425 | 102 135 188 Core 204 | 18 . 186 Treads 109 | . 107 2 Legs 112 | 84 28 . Wheels . | . . . Hover . | . . . Flight . | . . . Fastest Speed 50 | 50 120 50 Average Speed 99 | 118 151 51 Slowest Speed 190 | 190 160 160 Overloaded Moves . | . . . Propulsion Burnouts . | . . . Robots Hopped . | . . . Potential Cave-ins . | . . . Cave-ins Triggered . | . . . Exploration Rate (%) 19 | 6 22 29 Regions Visited 2 Branch Regions 1 Pre-discovered Areas . | . . . Known Exits Taken 1 | . 1 . Unknown Exits Taken 1 | 1 . . Scrap Searched . | . . . Spaces Dug . | . . . Terrain Destroyed 30 | . . 30 Melee . | . . . Projectile . | . . . AOE 30 | . . 30 Terrain Rammed . | . . . Walls Destroyed . | . . . Machines Disabled . | . . . Actions | -11 -10 -10 --------- Run | Yrd Mat Min Total 522 | 132 184 206 Wait 15 | 4 11 . Move 423 | 101 134 188 Hop . | . . . Pick Up 18 | 10 6 2 Fast Attach 6 | 3 1 2 Attach 9 | 4 2 3 Detach . | . . . Swap 3 | . 2 1 Drop 7 | . 5 2 Fire 37 | 10 19 8 Melee . | . . . Ram . | . . . Kick . | . . . Crush 4 | . 4 . Escape Stasis . | . . . Rewire . | . . . Trap . | . . . Miscellaneous . | . . . Route ------- -11/Scrapyard -10/Materials -10/Mines History --------- Turn | Location | Event 54 | -11/Scrapyard | Discovered new exit (range 13) 174 | -11/Scrapyard | Entered Materials 258 | -10/Materials | Identified exit to Mines 318 | -10/Materials | Build established: Mutant 467 | -10/Materials | Entered Mines 468 | -10/Mines | Assembled infested the area 488 | -10/Mines | Released all parts (4) 491 | -10/Mines | Core integrity fell below 50% 492 | -10/Mines | Joined a pair of Derelicts in attacking an 0b10 outpost 504 | -10/Mines | Destroyed 16 combat bots 515 | -10/Mines | Lost 4 parts (2n1u1w) 591 | -10/Mines | Core integrity fell below 20% 591 | -10/Mines | Destroyed by D-53 Grenadier with Mini Grenade Launcher Last Messages --------------- 00496_ Y-45 Defender destroyed. 00498_ Acquired Lgt. Treads. 00498_ Y-45 Defender suffers critical hit (Burn). 00498_ Y-45 Defender destroyed. 00502_ Acquired Lgt. Treads. 00503_ D-53 Grenadier destroyed. 00503_ Dropped Lgt. Treads. 00504_ Dropped Imp. Terrain Scanner. 00504_ Acquired Lgt. Treads. 00506_ as-09657 destroyed. 00508_ K-01 Serf collects debris. 00520_ WL84VR9GLRHZITTEHD,6XU 00546_ K-01 Serf collects debris. 00557_ IXUC0F0C6KL=9#OLE#&V=7S5VOYH5JFJ2 00578_ System corrupted: Matter fused (-8). 00583_ Seismic Detector destroyed. 00586_ K-01 Serf collects debris. 00588_ The unstable cave ceiling collapses. 00589_ K-01 Serf collects debris. 00590_ U-05 Engineer lays Concrete. Map ----- +----------------------------------------------------+ | | | | | | | ?????????????????????????????????????????????????? | | ?????????????????????????????????????????????????? | | ?????????????????????????????????????????????????? | | ?????????????????????????????????????????????????? | | ??????????????????????????????######??????####???? | | ?????????????????????????????##"]!"##????## ##??? | | ?????????????????????????????#"" !""#????# ! ##?? | | ??????????????????????????##?#*[! #????# ##? | | ???????????????????????#### ###%[!!##???## #? | | ???????????????????????# ###++###??## ## | | ???????????????????????#??# !% !#?## | | ????????????????????#### ?### ### ![ ### | | ????????????????????? ## # ## #?? | | ????????????????????????# # t ## ### ### | | ??????????????????????#### =% ### ! #?# # | | ????????????????????### !%# ###] #?## # | | ???????????????????## ! ###?# ### #??# # | | ???????????????????# [ ! ###???##??# #??# # | | ???????????????????# ]! #????????# #??# # | | ???????????????????## *! ####???????# #??# | | ????????????????????# !%# # #?????????? #??# | | ????????????????????# =# ##??????????###?## | | ????????????????????# k@< #????????######## | | ????????????????????# #?? "" | | ???????????????????# # #?????????###### "" | | ????????????????? t ###????????????# "" | | ???????????????" u #####??????## | | ??????????????% #### # #???????## | | ???????????? ##??### # d ? #????????## | | ????????????????????## # ##?# ########### | | ??????????????????????###s#### #??# | | ????????????????????????#s???? #??############ | | ????????????????????????# ???? #?????????????## | | ????????????????????????# ????? #??????????????## | | ????????????????????????# ????? #???????????????## | | ?????????????????????????s???????????????????????# | | ?????????????????????????$???????????????????????? | | ?????????????????????????#???????????????????????? | | ?????????????????????????????????????????????????? | | ?????????????????????????????????????????????????? | | ?????????????????????????????????????????????????? | | ?????????????????????????????????????????????????? | | ?????????????????????????????????????????????????? | | ?????????????????????????????????????????????????? | | ?????????????????????????????????????????????????? | | ?????????????????????????????????????????????????? | | ?????????????????????????????????????????????????? | +----------------------------------------------------+ Best States ------------- Heat Dissipation 25 Energy Generation 10 Energy Capacity 250 Matter Stores 242 Matter Capacity 300 Sight Range 16 Terrain Scan Range 16 Terrain Scan Density 10 Armor Coverage 225 Core Shielding 20 Evasion (%) 55 Recoil Reduction 2 Item Schematics ----------------- None Robot Schematics ------------------ None Fabricated ------------ Nothing Repaired ---------- Nothing Studied --------- None Alien Tech Used ----------------- None Achievements -------------- DATA ERROR: Steam Global Achievement% For Emergencies Only Live, Flee, And Rebuild Organ Harvest There's More Where That Came From Challenges ------------ None Game ------ Seed ProjectionHybridInterface Manual? 0 Play Time 00:14:31 Cumulative 78.9 hours Start 2026.08.25 @ 15:36:26 End 2026.08.25 @ 15:50:15 Sessions 1 Manual Loads 0 Difficulty Rogue Special Mode None Game No. 70 Rogue 30 Adventurer 40 Explorer 0 Win Type - Total 4 Types 2/1/0/1/0/0/0/0/0/0 Lore% 40 Gallery% 44 Achievement% 30 Wizard Run 0 Options --------- Layout 1 ASCII 0 Keyboard 0 Movement Mouse Keybinds 0 Fullscreen 2 Font 20/SmallcapsGlow Map View 64x42 Zoom Use 0% Tactical HUD 1 Map Filters NONE Filters NONE Steam 1 RUN: f64ae801-1045-4439-bc62-e7ef2584da5f